{"text_format":"1","workbook":"xlsx","n_sheets":1,"sheets":["Arkusz1"],"not_rendered":{"charts":0,"images":1,"macros":1,"external_links":0,"defined_names":0,"comments":0,"pivot_tables":0},"unopened":[],"bounds":{"document_bytes":16777216,"sheet_cells":100000,"rows_first":2000,"rows_last":500,"rows_between":2000,"halvings":0,"cell_chars":16384,"cell_head_chars":4096},"cells_cut":0,"cells_raw":0,"read":"whole","date_system":"1900"}

{"sheet":"Arkusz1","index":0,"n_rows":18,"n_cols":13,"rows_kept":18,"cut":false,"hidden":false,"merged":[]}
["Identyfikator","Dane","Cecha","Etykieta","Etykieta opisowa",null,17,12,null,"cecha 1",null,"Dane 1","Dane 2"]
["terc_02",1,"cecha 1","dolnośl.",{"$f":"B2&\" szt.\"","v":"1 szt."},null,12,8,null,"cecha 2",null,{"$f":"B2*10","v":10},{"$f":"L2*2","v":20}]
["terc_04",2,"cecha 2","kuj-pom.",{"$f":"B3&\" szt.\"","v":"2 szt."},null,8,4,null,"cecha 3",null,{"$f":"B3*10","v":20},{"$f":"L3*2","v":40}]
["terc_06",3,"cecha 3","lubel.","3 szt.",null,4,0,null,"cecha 4",null,30,60]
["terc_08",4,"cecha 4","lubus.","4 szt.",null,null,null,null,null,null,40,80]
["terc_10",5,"cecha 1","łódz.","5 szt.",null,null,null,null,null,null,50,100]
["terc_12",6,"cecha 2","małop.","6 szt.",null,null,null,null,null,null,60,120]
["terc_14",7,"cecha 3","mazow.","7 szt.",null,null,null,null,null,null,70,140]
["terc_16",8,"cecha 4","opol.","8 szt.",null,null,null,null,null,null,80,160]
["terc_18",9,"cecha 1","podkarp.","9 szt.",null,null,null,null,null,null,90,180]
["terc_20",10,"cecha 2","podl.","10 szt.",null,null,null,null,null,null,100,200]
["terc_22",11,"cecha 3","pomors.","11 szt.",null,null,null,null,null,null,110,220]
["terc_24",12,"cecha 4","śląsk.","12 szt.",null,null,null,null,null,null,120,240]
["terc_26",13,"cecha 1","świętokrz.","13 szt.",null,null,null,null,null,null,130,260]
["terc_28",14,"cecha 2","war-maz.","14 szt.",null,null,null,null,null,null,140,280]
["terc_30",15,"cecha 3","wielkop.","15 szt.",null,null,null,null,null,null,150,300]
["terc_32",16,"cecha 4","zachodniopom.","16 szt.",null,null,null,null,null,null,160,320]
["terc_0463",17,"cecha 3","Toruń","17 szt.",null,null,null,null,null,null,170,340]